bitfinex/quotes_SOLUSD_20250607
["timestamp","ask_amount","ask_price","bid_price","bid_amount"]
[1749310120965,11.71137647,151.55,151.51,99.94]
[1749310121170,4.91422019,151.54,151.51,99.94]
[1749310121373,11.71137647,151.55,151.51,99.94]
[1749310121584,4.91513851,151.54,151.51,99.94]
[1749310121878,11.71137647,151.55,151.51,99.94]
[1749310122187,4.91533887,151.54,151.51,111.65308141]
[1749310122370,5.11287536,151.55,151.51,111.65308141]
[1749310122571,4.91571688,151.54,151.51,111.65308141]
[1749310122773,5.11287536,151.55,151.51,111.65308141]
[1749310122962,4.91562328,151.54,151.51,111.65308141]
[1749310123162,5.11287536,151.55,151.51,111.65308141]
[1749310123458,4.91503593,151.54,151.51,111.65308141]
[1749310123690,5.11287536,151.55,151.51,111.65308141]
[1749310123884,4.91599367,151.54,151.51,111.65308141]
[1749310124087,5.11287536,151.55,151.51,111.65308141]
[1749310124287,4.91559671,151.54,151.51,111.65308141]
[1749310124595,5.11287536,151.55,151.51,111.65308141]
[1749310124782,4.91396058,151.54,151.51,111.65308141]
[1749310124961,11.71137199,151.55,151.51,111.65308141]
[1749310125162,4.9136844,151.54,151.51,106.54020605]
[1749310125361,11.71137199,151.55,151.51,106.54020605]
[1749310125598,4.91316776,151.54,151.51,106.54020605]
[1749310125778,11.71137199,151.55,151.51,106.54020605]
[1749310125969,4.91315646,151.54,151.51,106.54020605]
[1749310126171,11.71137199,151.55,151.51,106.54020605]
[1749310126491,4.91315646,151.54,151.51,99.94]
[1749310126666,11.71137199,151.55,151.51,99.94]
[1749310126866,4.91332053,151.54,151.51,99.94]
[1749310127170,5.11287536,151.54,151.51,99.94]
[1749310127383,4.91387268,151.53,151.51,99.94]
[1749310127582,5.11287536,151.54,151.52,10.44]
[1749310127902,4.91391594,151.53,151.52,10.44]
[1749310128187,5.11287536,151.54,151.52,10.44]
[1749310128393,4.91391513,151.53,151.52,99.94]
[1749310128568,4.9148196,151.53,151.52,99.94]
[1749310132497,4.9148196,151.53,151.52,89.5]
[1749310136002,18.64964886,151.54,151.52,89.5]
[1749310136407,4.91722452,151.53,151.52,89.5]
[1749310136993,30.36082425,151.56,151.52,89.5]
[1749310137183,4.91741864,151.55,151.52,89.5]
[1749310137510,4.91741864,151.54,151.52,89.5]
[1749310137698,30.36082425,151.56,151.52,89.5]
[1749310137887,4.91736778,151.55,151.52,89.5]
[1749310138211,30.36082425,151.56,151.52,89.5]
[1749310138212,4.91736778,151.54,151.52,89.5]
[1749310138388,30.36082425,151.56,151.52,89.5]
[1749310138590,4.91800244,151.55,151.52,89.5]
[1749310138899,4.91800244,151.54,151.52,96.09976502]
[1749310139098,18.64964886,151.56,151.52,101.21264038]
[1749310139303,4.91887663,151.55,151.52,101.21264038]
[1749310139518,18.64964886,151.56,151.52,101.21264038]
[1749310139821,4.91876611,151.55,151.52,101.21264038]
[1749310140002,30.36067448,151.56,151.52,89.5]
[1749310140179,4.91876488,151.55,151.52,89.5]
[1749310140379,30.36067448,151.56,151.52,89.5]
[1749310140579,4.91815543,151.55,151.52,89.5]
[1749310140800,4.91815543,151.54,151.52,89.5]
[1749310141003,30.36067448,151.56,151.52,89.5]
[1749310141316,4.91815668,151.55,151.52,89.5]
[1749310141496,4.91815668,151.54,151.52,89.5]
[1749310141806,30.36067448,151.56,151.52,89.5]
[1749310142003,4.91795125,151.55,151.52,99.92]
[1749310142307,4.91795125,151.54,151.52,99.92]
[1749310142520,5.11287536,151.55,151.52,99.92]
[1749310142803,23.76252422,151.53,151.52,99.92]
[1749310143108,28.68021692,151.53,151.52,99.92]
[1749310143682,35.27957018,151.53,151.52,99.92]
[1749310144691,18.64964886,151.52,151.48,99.92]
[1749310144917,5.11287536,151.5,151.48,99.92]
[1749310145337,5.11287536,151.51,151.48,99.92]
[1749310146006,11.71339419,151.51,151.48,99.92]
[1749310147807,5.11287536,151.5,151.48,99.92]
[1749310151712,5.11287536,151.5,151.48,89.5]
[1749310153350,11.71362351,151.5,151.48,89.5]
[1749310154339,5.11287536,151.5,151.48,89.5]
[1749310156447,5.11287536,151.51,151.48,89.5]
[1749310158255,5.11287536,151.5,151.48,89.5]
[1749310158826,23.76252422,151.49,151.48,89.5]
[1749310159031,18.64964886,151.48,151.43,89.5]
[1749310159231,5.11287536,151.46,151.43,89.5]
[1749310162035,11.71540037,151.46,151.43,89.5]
[1749310162236,5.11287536,151.45,151.43,89.5]
[1749310166759,30.36608146,151.44,151.41,89.5]
[1749310166959,5.11287536,151.42,151.41,89.5]
[1749310167162,5.11287536,151.43,151.41,89.5]
[1749310167371,23.76252422,151.44,151.41,89.5]
[1749310167742,5.11287536,151.44,151.41,96.10440711]
[1749310167945,31.11287536,151.45,151.41,101.21728247]
[1749310168262,31.11287536,151.45,151.41,94.61287536]
[1749310168655,31.11287536,151.45,151.41,101.21723358]
[1749310173654,26.0,151.45,151.42,5.11287536]
[1749310174165,37.71489413,151.47,151.43,5.11287536]
[1749310175964,31.11287536,151.47,151.42,11.71688411]
[1749310178564,31.11287536,151.47,151.42,101.21688411]
[1749310179381,5.11287536,151.45,151.42,96.10400875]
[1749310179762,5.11287536,151.46,151.42,101.21688411]
[1749310183078,31.11287536,151.47,151.42,101.21688411]
[1749310185983,31.11287536,151.47,151.42,96.10400875]
[1749310186181,31.11287536,151.47,151.42,101.21688411]
[1749310188765,37.71489938,151.47,151.42,101.21688411]
[1749310188961,5.11287536,151.46,151.42,101.21688411]
[1749310197799,5.11287536,151.46,151.43,10.42]
[1749310199897,9.99986827,151.46,151.43,10.42]
[1749310200289,16.60244827,151.46,151.43,10.42]
[1749310201000,5.11287536,151.46,151.43,10.42]
[1749310201179,10.01449687,151.46,151.43,10.42]
[1749310201378,11.71530653,151.46,151.43,10.42]
[1749310201589,16.61839659,151.46,151.43,10.42]
[1749310202182,16.61839659,151.46,151.43,99.92]
[1749310202678,4.90532472,151.46,151.43,99.92]
[1749310202876,37.71498725,151.47,151.43,99.92]
[1749310203072,4.90525555,151.46,151.43,99.92]
[1749310203277,37.71498725,151.47,151.43,99.92]
[1749310203496,4.90793979,151.46,151.43,99.92]
[1749310203797,5.11287536,151.46,151.43,89.5]
[1749310211007,12.70993138,151.49,151.43,101.21645586]
[1749310211218,18.64964886,151.5,151.46,5.11287536]
[1749310211385,4.91351568,151.49,151.46,5.11287536]
[1749310211588,4.91351568,151.48,151.46,5.11287536]
[1749310211909,23.76252422,151.49,151.44,5.11287536]
[1749310212203,4.91348422,151.48,151.44,5.11287536]
[1749310212421,32.60066708,151.5,151.42,10.42]
[1749310212422,23.76252422,151.45,151.42,10.42]
[1749310212991,18.64964886,151.45,151.42,10.42]
[1749310213785,25.25249922,151.45,151.42,10.42]
[1749310217715,30.36537458,151.45,151.42,10.42]
[1749310217913,10.02518244,151.44,151.42,10.42]
[1749310218210,5.11287536,151.44,151.42,10.42]
[1749310219799,11.71637671,151.44,151.42,10.42]
[1749310221702,5.11287536,151.44,151.42,10.42]
[1749310221907,11.7161619,151.44,151.42,10.42]
[1749310222625,23.76252422,151.43,151.42,10.42]
[1749310223721,28.67426959,151.43,151.42,10.42]
[1749310224119,35.27798087,151.43,151.42,10.42]
[1749310235227,30.3662355,151.43,151.42,10.42]
[1749310236815,30.3662355,151.43,151.4,89.5]
[1749310237008,5.11287536,151.41,151.4,89.5]
[1749310237414,11.71745894,151.41,151.4,89.5]
[1749310239321,18.64964886,151.4,151.38,89.5]
[1749310239507,10.02462073,151.39,151.36,99.9]
[1749310239725,5.11287536,151.37,151.36,99.9]
[1749310240415,11.71920422,151.37,151.36,99.9]
[1749310241218,5.11287536,151.37,151.36,99.9]
[1749310242225,23.76252422,151.37,151.36,10.4]
[1749310247923,18.64964886,151.36,151.32,106.50835315]
[1749310248240,5.11287536,151.35,151.32,106.50835315]
[1749310248836,5.11287536,151.34,151.32,89.5]
[1749310249216,5.11287536,151.33,151.32,89.5]
[1749310250235,5.11287536,151.34,151.32,89.5]
[1749310251262,18.64964886,151.31,151.27,89.5]
[1749310251433,5.11287536,151.3,151.27,89.5]
[1749310252415,5.11287536,151.29,151.27,89.5]
[1749310254338,51.25871859,151.31,151.27,94.61287536]
[1749310254339,49.76252422,151.31,151.27,94.61287536]
[1749310254521,49.76252422,151.31,151.27,89.5]
[1749310254841,5.11287536,151.3,151.27,89.5]
[1749310257631,5.11287536,151.29,151.27,89.5]
[1749310259036,44.64964886,151.31,151.27,96.1105505]
[1749310259241,5.11287536,151.3,151.27,96.1105505]
[1749310259548,5.11287536,151.3,151.27,89.5]
[1749310259725,5.11287536,151.29,151.27,89.5]
[1749310261349,5.11287536,151.28,151.27,89.5]
[1749310261924,44.64964886,151.31,151.27,89.5]
[1749310262231,31.11287536,151.31,151.27,136.43057914]
[1749310262629,31.11287536,151.31,151.27,141.5434545]
[1749310263038,5.11287536,151.29,151.27,129.82]
[1749310263243,5.11287536,151.29,151.27,89.5]
[1749310263453,5.11287536,151.28,151.27,89.5]
[1749310265222,56.37278334,151.28,151.27,89.5]
[1749310265426,56.37278334,151.28,151.24,99.9]
[1749310265427,18.64964886,151.27,151.24,99.9]
[1749310265724,5.11287536,151.25,151.24,99.9]
[1749310266358,49.76252422,151.25,151.24,99.9]
[1749310266527,18.64964886,151.24,151.2,10.4]
[1749310266854,5.11287536,151.21,151.2,10.4]
[1749310267226,8.02436577,151.21,151.2,10.4]
[1749310268634,18.64964886,151.24,151.2,10.4]
[1749310268981,8.02436577,151.21,151.2,10.4]
[1749310271163,18.64964886,151.22,151.2,10.4]
[1749310271340,8.02436577,151.21,151.2,10.4]
[1749310272140,6.61213892,151.24,151.2,10.4]
[1749310272340,8.02436577,151.21,151.2,10.4]
[1749310274937,34.11597285,151.25,151.2,10.4]
[1749310275259,8.02436577,151.23,151.2,10.4]
[1749310275483,26.67401463,151.24,151.2,25.03804614]
[1749310275769,26.67401463,151.24,151.2,17.01368037]
[1749310276273,8.02436577,151.23,151.2,106.51368037]
[1749310276762,8.02436577,151.23,151.2,99.9]
[1749310276967,8.02436577,151.23,151.2,106.51370837]
[1749310277132,26.67401463,151.24,151.2,106.51370837]
[1749310277337,18.64964886,151.24,151.2,114.53807414]
[1749310277644,26.67401463,151.24,151.2,114.53807414]
[1749310277850,26.0,151.25,151.21,8.02436577]
[1749310278167,34.02436577,151.25,151.21,8.02436577]
[1749310279143,8.02436577,151.24,151.2,99.9]
[1749310279554,8.02436577,151.24,151.2,107.92436577]
[1749310281284,26.0,151.25,151.2,107.92436577]
[1749310281486,40.6359765,151.25,151.2,114.53799976]
[1749310281669,34.02436577,151.25,151.2,114.53799976]
[1749310281863,40.63600256,151.25,151.2,114.53799976]
[1749310282368,8.02436577,151.24,151.2,114.53799976]
[1749310283570,8.02436577,151.24,151.2,106.51363399]
[1749310283877,14.63642764,151.24,151.2,107.92436577]
[1749310284179,8.02436577,151.23,151.2,99.9]
[1749310284386,33.2860765,151.24,151.2,99.9]
[1749310285077,40.636065,151.25,151.2,114.53807536]
[1749310286581,34.02436577,151.25,151.2,114.53807536]
[1749310286968,26.0,151.25,151.2,114.53807536]
[1749310287162,16.52579792,151.28,151.23,8.02436577]
[1749310287163,26.0,151.27,151.23,8.02436577]
[1749310287686,26.0,151.27,151.23,14.63673331]
[1749310288357,8.02436577,151.29,151.24,8.02436577]
[1749310288561,26.0,151.28,151.24,97.52436577]
[1749310288763,18.64964886,151.3,151.24,97.52436577]
[1749310289069,8.02436577,151.3,151.26,8.02436577]
[1749310289276,18.64964886,151.29,151.26,8.02436577]
[1749310289473,1.5193,151.33,151.28,8.02436577]
[1749310289774,44.64964886,151.33,151.29,8.02436577]
[1749310291573,44.64964886,151.33,151.29,14.63414396]
[1749310291884,44.64964886,151.33,151.3,8.02436577]
[1749310292283,26.0,151.33,151.3,97.52436577]
[1749310294180,26.0,151.33,151.3,104.13374501]
[1749310294376,26.0,151.33,151.3,97.52436577]
[1749310294577,26.0,151.33,151.3,107.92436577]
[1749310294773,26.0,151.33,151.3,114.53372441]
[1749310295394,18.64964886,151.35,151.3,114.53372441]
[1749310295596,63.45513778,151.37,151.34,8.02436577]
[1749310295892,63.45513778,151.37,151.3,146.82935864]
[1749310295893,12.91233454,151.4,151.36,8.02436577]
[1749310296079,14.62864957,151.42,151.37,8.02436577]
[1749310296275,14.62864957,151.42,151.36,89.5]
[1749310296276,8.02436577,151.42,151.38,8.02436577]
[1749310296479,26.0,151.42,151.38,8.02436577]
[1749310296687,14.62810228,151.43,151.38,97.52436577]
[1749310296877,18.64964886,151.42,151.38,97.52436577]
[1749310297079,26.67401463,151.42,151.38,97.52436577]
[1749310297583,33.27822577,151.42,151.38,97.52436577]
[1749310298194,26.67401463,151.42,151.38,97.52436577]
[1749310298497,18.64964886,151.42,151.38,97.52436577]
[1749310298794,26.67401463,151.42,151.38,97.52436577]
[1749310299597,33.27824428,151.42,151.38,97.52436577]
[1749310301197,33.27824428,151.42,151.38,89.5]
[1749310302606,26.67401463,151.42,151.38,89.5]
[1749310303087,33.27829845,151.42,151.38,89.5]
[1749310309605,26.0,151.43,151.39,8.02436577]
[1749310309818,40.62821907,151.43,151.39,8.02436577]
[1749310309983,8.02436577,151.42,151.38,97.52436577]
[1749310311090,32.6038533,151.43,151.39,8.02436577]
[1749310311291,34.02436577,151.43,151.39,8.02436577]
[1749310311710,40.62829719,151.43,151.39,97.52436577]
[1749310312216,40.62829719,151.43,151.39,89.5]
[1749310312794,8.02436577,151.42,151.39,89.5]
[1749310314309,8.02436577,151.42,151.39,96.10539266]
[1749310314792,8.02436577,151.42,151.39,136.40539266]
[1749310314998,8.02436577,151.42,151.39,129.8]
[1749310316414,14.62872832,151.42,151.39,129.8]
[1749310316793,8.02436577,151.4,151.39,140.18]
[1749310316994,8.02436577,151.4,151.39,99.88]
[1749310317700,14.62938558,151.4,151.39,99.88]
[1749310318591,18.64964886,151.39,151.36,10.38]
[1749310318798,8.02436577,151.38,151.36,10.38]
[1749310320092,14.63032907,151.38,151.36,10.38]
[1749310320297,7.50154375,151.37,151.36,10.38]
[1749310320812,14.63032907,151.38,151.36,10.38]
[1749310322107,26.67401463,151.37,151.36,10.38]
[1749310322706,8.02436577,151.37,151.36,10.38]
[1749310326515,8.02436577,151.37,151.36,99.88]
[1749310327405,40.63069463,151.37,151.36,99.88]
[1749310328032,59.28034349,151.37,151.36,89.5]
[1749310329108,59.28034349,151.37,151.32,10.38]
[1749310329319,34.02436577,151.33,151.32,10.38]
[1749310329911,26.0,151.33,151.32,10.38]
[1749310330315,8.02436577,151.34,151.32,10.38]
[1749310330624,18.64964886,151.36,151.32,10.38]
[1749310330625,44.64964886,151.36,151.32,10.38]
[1749310330931,8.02436577,151.35,151.32,10.38]
[1749310331923,8.02436577,151.35,151.32,16.98843396]
[1749310332303,26.0,151.36,151.32,16.98843396]
[1749310332525,34.02436577,151.36,151.32,25.01279973]
[1749310332748,26.0,151.36,151.32,25.01279973]
[1749310332906,8.02436577,151.37,151.32,16.98843396]
[1749310333109,8.02436577,151.37,151.33,8.02436577]
[1749310333633,8.02436577,151.37,151.32,114.51279973]
[1749310333932,8.02436577,151.35,151.32,99.88]
[1749310337025,8.02436577,151.36,151.32,99.88]
[1749310337836,8.02436577,151.36,151.32,107.90436577]
[1749310339742,14.63123472,151.36,151.32,107.90436577]
[1749310340041,14.63123472,151.36,151.32,99.88]
[1749310341115,6.60686895,151.36,151.32,99.88]
[1749310341321,14.63084123,151.37,151.32,107.90436577]
[1749310341721,14.63084123,151.37,151.33,8.02436577]
[1749310343037,14.63084123,151.37,151.33,18.40436577]
[1749310343915,8.02436577,151.36,151.33,10.38]
[1749310344317,8.02436577,151.36,151.33,99.88]
[1749310345327,14.63140255,151.36,151.33,99.88]
[1749310346437,8.02436577,151.36,151.33,99.88]
[1749310348242,14.63118919,151.36,151.33,99.88]
[1749310349849,6.60651186,151.37,151.33,99.88]
[1749310350137,8.02436577,151.37,151.33,99.88]
[1749310350314,52.67401463,151.38,151.33,114.51232391]
[1749310350947,8.02436577,151.37,151.33,114.51232391]
[1749310352135,8.02436577,151.37,151.33,107.90436577]
[1749310352343,14.63069469,151.37,151.33,107.90436577]
[1749310353227,8.02436577,151.37,151.33,114.51243074]
[1749310354339,8.02436577,151.37,151.34,40.3]
[1749310356024,8.02436577,151.37,151.34,129.8]
[1749310356348,26.0,151.4,151.36,14.63113109]
[1749310356569,26.0,151.4,151.36,104.13113109]
[1749310358820,34.02436577,151.4,151.36,104.13113109]
[1749310359141,8.02436577,151.37,151.36,89.5]
[1749310359344,26.67401463,151.37,151.33,99.88]
[1749310359643,8.02436577,151.36,151.33,99.88]
[1749310360723,18.64964886,151.37,151.33,99.88]
[1749310360724,8.02436577,151.34,151.33,99.88]
[1749310361920,8.02436577,151.35,151.33,99.88]
[1749310363261,12.93769856,151.35,151.33,99.88]
[1749310363552,8.02436577,151.35,151.33,99.88]
[1749310363751,12.93769856,151.35,151.33,99.88]
[1749310363920,8.02436577,151.35,151.33,99.88]
[1749310364125,12.93769856,151.35,151.33,99.88]
[1749310364847,8.02436577,151.34,151.33,99.88]
[1749310365220,19.54530528,151.35,151.33,99.88]
[1749310365454,14.63175269,151.35,151.33,99.88]
[1749310365648,19.54530528,151.35,151.33,99.88]
[1749310365858,14.63175269,151.35,151.33,99.88]
[1749310366163,8.02436577,151.34,151.33,99.88]
[1749310366535,26.67401463,151.34,151.33,10.38]
[1749310366740,26.67401463,151.34,151.31,89.5]
[1749310366741,31.58756722,151.34,151.31,89.5]
[1749310366949,8.02436577,151.32,151.31,89.5]
[1749310367863,33.28252639,151.32,151.31,89.5]
[1749310368073,38.19607898,151.32,151.29,99.88]
[1749310368241,8.02436577,151.3,151.29,99.88]
[1749310369838,14.63337785,151.31,151.29,99.88]
[1749310370048,8.02436577,151.31,151.29,99.88]
[1749310371453,14.63333945,151.31,151.29,99.88]
[1749310372147,8.02436577,151.3,151.29,99.88]
[1749310372353,26.67401463,151.3,151.29,10.38]
[1749310373159,33.28339995,151.3,151.29,10.38]
[1749310379269,33.28339995,151.3,151.26,89.5]
[1749310379587,8.02436577,151.29,151.26,89.5]
[1749310380285,6.61025912,151.28,151.26,89.5]
[1749310380487,14.63462489,151.28,151.26,89.5]
[1749310382711,8.02436577,151.28,151.26,89.5]
[1749310382992,14.63430264,151.29,151.26,89.5]
[1749310385423,8.02436577,151.27,151.26,89.5]
[1749310385565,26.67401463,151.27,151.26,89.5]
[1749310386776,33.28471073,151.27,151.26,89.5]
[1749310387772,33.28471073,151.27,151.22,89.5]
[1749310387980,34.02436577,151.24,151.22,89.5]
[1749310388283,8.02436577,151.25,151.22,89.5]
[1749310390917,34.02436577,151.26,151.22,104.1372111]
[1749310391121,26.0,151.26,151.23,8.02436577]
[1749310391309,26.0,151.26,151.23,48.32436577]
[1749310391616,26.0,151.28,151.24,8.02436577]
[1749310393891,26.0,151.28,151.24,14.63634799]
[1749310395927,26.0,151.28,151.25,8.02436577]
[1749310396721,8.02436577,151.3,151.26,8.02436577]
[1749310396916,8.02436577,151.32,151.28,8.02436577]
[1749310397115,26.0,151.31,151.28,8.02436577]
[1749310400501,26.0,151.31,151.28,97.52436577]
[1749310402615,34.02436577,151.31,151.28,89.5]
[1749310403925,26.0,151.31,151.28,104.13458139]
[1749310404109,4.89381436,151.34,151.3,8.02436577]
[1749310404313,26.0,151.34,151.3,97.52436577]
[1749310404509,26.0,151.34,151.31,18.40436577]
[1749310404709,26.0,151.33,151.32,8.02436577]
[1749310405015,14.63126893,151.36,151.32,8.02436577]
[1749310405218,4.89381436,151.38,151.33,8.02436577]
[1749310405425,8.02436577,151.38,151.34,8.02436577]
[1749310405624,34.02436577,151.38,151.34,8.02436577]
[1749310405926,33.2796285,151.39,151.34,8.02436577]
[1749310406629,59.2796285,151.39,151.34,8.02436577]
[1749310407227,33.2796285,151.39,151.34,8.02436577]
[1749310407433,59.2796285,151.39,151.34,8.02436577]
[1749310408831,34.02436577,151.39,151.34,14.63182158]
[1749310409030,34.02436577,151.39,151.35,8.02436577]
[1749310409211,8.02436577,151.36,151.33,89.5]
[1749310409406,8.02436577,151.34,151.31,99.88]
[1749310409624,8.02436577,151.32,151.31,10.38]
[1749310410616,14.63287753,151.32,151.31,10.38]
[1749310411030,33.28252639,151.32,151.31,10.38]
[1749310411433,33.28252639,151.32,151.29,89.5]
[1749310411626,8.02436577,151.31,151.29,89.5]
[1749310412335,14.63341242,151.31,151.29,89.5]
[1749310414416,8.02436577,151.3,151.29,89.5]
[1749310414744,8.02436577,151.3,151.27,10.38]
[1749310416627,8.02436577,151.29,151.27,10.38]
[1749310416842,8.02436577,151.28,151.27,99.88]
[1749310417414,26.67401463,151.28,151.27,99.88]
[1749310418025,8.02436577,151.28,151.27,99.88]
[1749310418332,14.63462489,151.28,151.27,99.88]
[1749310418729,14.63462489,151.28,151.27,89.5]
[1749310421231,14.63462489,151.28,151.23,107.90436577]
[1749310421429,8.02436577,151.27,151.23,107.90436577]
[1749310422329,8.02436577,151.27,151.23,148.20436577]
[1749310424129,8.02436577,151.27,151.23,154.81675199]
[1749310424334,8.02436577,151.28,151.24,8.02436577]
[1749310425357,8.02436577,151.28,151.24,14.63627061]
[1749310426263,14.63468313,151.28,151.24,8.02436577]
[1749310426952,14.63468313,151.28,151.23,140.18]
[1749310427156,14.63468313,151.28,151.24,8.02436577]
[1749310429362,8.02436577,151.27,151.23,148.20436577]
[1749310430565,8.02436577,151.27,151.23,154.81670956]
[1749310431470,14.63468313,151.28,151.24,8.02436577]
[1749310432262,8.02436577,151.27,151.23,140.18]
[1749310432464,8.02436577,151.27,151.23,107.90436577]
[1749310432660,8.02436577,151.27,151.23,148.20436577]
[1749310433469,14.63522668,151.27,151.23,148.20436577]
[1749310434967,14.63522668,151.27,151.23,99.88]
[1749310435860,8.02436577,151.26,151.23,99.88]
[1749310436066,8.02436577,151.25,151.23,99.88]
[1749310437367,8.02436577,151.26,151.23,99.88]
[1749310439785,14.6355036,151.26,151.23,99.88]
[1749310441084,8.02436577,151.25,151.23,99.88]
[1749310441588,52.67401463,151.24,151.23,89.5]
[1749310441794,18.64964886,151.23,151.19,148.20436577]
[1749310441996,26.67401463,151.23,151.19,107.90436577]
[1749310442174,33.28664984,151.23,151.19,99.88]
[1749310442694,8.02436577,151.22,151.19,99.88]
[1749310443071,8.02436577,151.21,151.19,99.88]
[1749310444582,8.02436577,151.22,151.19,99.88]
[1749310444790,20.18424886,151.23,151.19,114.51847591]
[1749310444791,26.67401463,151.23,151.19,114.51847591]
[1749310445776,18.64964886,151.23,151.19,114.51847591]
[1749310449807,6.4175829,151.27,151.21,8.02436577]
[1749310450103,6.2642,151.28,151.24,8.02436577]
[1749310450104,26.67401463,151.28,151.24,8.02436577]
[1749310450312,44.64964886,151.28,151.25,8.02436577]
[1749310450600,26.0,151.28,151.25,97.52436577]
[1749310451184,1.5679,151.31,151.26,8.02436577]
[1749310451385,26.67401463,151.3,151.26,8.02436577]
[1749310451599,52.67401463,151.3,151.26,8.02436577]
[1749310451784,26.67401463,151.3,151.26,8.02436577]
[1749310453107,52.67401463,151.3,151.26,8.02436577]
[1749310453686,59.28350067,151.3,151.26,8.02436577]
[1749310455524,59.28350067,151.3,151.25,136.41131957]
[1749310455525,8.02436577,151.28,151.25,89.5]
[1749310457916,14.63485091,151.28,151.25,89.5]
[1749310458539,8.02436577,151.28,151.25,89.5]
[1749310459035,14.63470392,151.28,151.25,89.5]
[1749310460938,8.02436577,151.28,151.25,89.5]
[1749310461341,18.64964886,151.28,151.25,89.5]
[1749310462043,18.64964886,151.28,151.25,97.52436577]
[1749310462250,34.02436577,151.3,151.26,8.02436577]
[1749310462619,34.02436577,151.3,151.26,97.52436577]
[1749310462922,34.02436577,151.3,151.26,104.13541831]
[1749310466418,26.0,151.3,151.26,104.13541831]
[1749310469257,18.64964886,151.31,151.28,8.02436577]
[1749310469461,18.64964886,151.33,151.29,8.02436577]
[1749310469626,26.0,151.31,151.29,97.52436577]
[1749310469830,16.76437842,151.34,151.3,8.02436577]
[1749310470053,35.41402728,151.34,151.31,8.02436577]
[1749310470560,61.41402728,151.34,151.31,8.02436577]
[1749310470761,68.02167212,151.34,151.3,8.02436577]
[1749310470955,76.04603789,151.34,151.3,8.02436577]
[1749310471643,76.04603789,151.34,151.29,107.90436577]
[1749310471871,8.02436577,151.33,151.29,107.90436577]
[1749310472359,8.02436577,151.32,151.29,99.88]
[1749310472782,8.02436577,151.31,151.29,99.88]
[1749310473472,14.63353256,151.31,151.29,99.88]
[1749310475188,6.60916679,151.31,151.29,99.88]
[1749310475389,14.63318369,151.32,151.29,99.88]
[1749310476690,6.60881792,151.32,151.29,99.88]
[1749310476982,14.63318369,151.32,151.29,99.88]
[1749310477584,8.02436577,151.31,151.29,99.88]
[1749310478387,14.63354504,151.31,151.29,99.88]
[1749310478864,8.02436577,151.3,151.29,99.88]
[1749310479612,18.64964886,151.29,151.26,89.5]
[1749310479814,8.02436577,151.28,151.26,89.5]
[1749310480408,14.63474262,151.28,151.26,89.5]
[1749310482121,6.61037685,151.28,151.26,89.5]
[1749310482301,14.63474262,151.28,151.26,89.5]
[1749310490227,6.61037685,151.28,151.26,89.5]
[1749310490419,14.63474262,151.28,151.26,89.5]
[1749310490622,33.28388094,151.29,151.26,89.5]
[1749310490822,25.25951517,151.29,151.26,89.5]
[1749310495045,30.15681453,151.29,151.26,89.5]
[1749310495246,25.25951517,151.29,151.26,89.5]
[1749310495432,30.15681453,151.29,151.26,89.5]
[1749310496920,38.1811803,151.29,151.26,89.5]
[1749310497150,33.28388094,151.29,151.26,89.5]
[1749310497332,30.15681453,151.29,151.26,89.5]
[1749310499551,38.1811803,151.29,151.26,89.5]
[1749310499724,33.28388094,151.29,151.26,89.5]
[1749310500052,38.1811803,151.29,151.26,89.5]
[1749310500264,33.28388094,151.29,151.26,89.5]
[1749310500461,38.1811803,151.29,151.26,89.5]
[1749310500762,8.02436577,151.27,151.26,89.5]
[1749310501330,18.64964886,151.26,151.25,10.36]
[1749310501545,33.28514777,151.26,151.25,10.36]
[1749310503557,33.28514777,151.26,151.23,89.5]
[1749310503763,8.02436577,151.25,151.23,89.5]
[1749310504066,14.63612653,151.25,151.23,89.5]
[1749310504356,6.61176076,151.25,151.23,89.5]
[1749310504524,26.67401463,151.27,151.23,97.52436577]
[1749310504730,57.5859024,151.27,151.23,97.52436577]
[1749310504933,52.67401463,151.27,151.23,97.52436577]
[1749310506380,59.28477148,151.27,151.23,97.52436577]
[1749310506851,59.28477148,151.27,151.23,129.78]